Cogmind - Beta 10 @@@ ROGUE MODE // 2020.09.17 @ 01:26:17 Player: Terminus Result: Self-destructed Performance ------------- Evolutions (9) 4500 Regions Visited (30) 6000 Robots Destroyed (379) 1895 Value Destroyed (20850) 20850 Prototype IDs (43) 860 Alien Tech Used (0) 0 Bonus (13207) 13207 TOTAL SCORE: 47312 Bonus ------- High Alert Combat Kills 1657 Follower Combat Kills 5106 Entered Garrisons 2000 Used RIF Installer 5000 Friendly Fire -556 Cogmind --------- Core Integrity 292/1600 Matter 300/300 Energy 99/100 System Corruption 21% Temperature Cool (0) Movement Core (50) Location -1/Access Parts ------- > --- POWER (2) -------- (None) > --- PROPULSION (3) --- Advanced Heavy Treads > --- UTILITY (18) ----- Advanced Signal Interpreter Advanced Targeting Computer Relay Coupler [Swarmer] (45) Relay Coupler [Grunt] (44) Relay Coupler [Grunt] (37) Relay Coupler [Brawler] (31) Relay Coupler [Sentry] (32) Relay Coupler [Demolisher] (40) > --- WEAPON (2) ------- (None) > --- INVENTORY (4) ---- Reinforced Quantum Reactor Advanced Cooling System Advanced Transmission Jammer Peak State ------------ > --- POWER ------------ Heavy Antimatter Reactor Particle Reactor > --- PROPULSION ------- Flexi-carbon Leg Armored Leg Myomer Leg > --- UTILITY ---------- Advanced Cooling System High-capacity Storage Unit High-capacity Storage Unit High-capacity Storage Unit High-capacity Storage Unit Advanced Armor Integrity Analyzer Advanced Weapon Cycler Advanced Transmission Jammer Improved Heavy Armor Plating Relay Coupler [NC] Relay Coupler [Swarmer] Relay Coupler [Grunt] Relay Coupler [Duelist] Relay Coupler [Sentry] Relay Coupler [Hunter] > --- WEAPON ----------- Compact HERF Cannon Improved Remote Datajack > --- INVENTORY -------- Light Antimatter Reactor Light Antimatter Reactor Flexi-carbon Leg Flexi-carbon Leg Experimental Heat Sink High-capacity Storage Unit Energy Well Energy Well Compact Matter Pod Improved Heavy Armor Plating Centrium Medium Armor Plating Centrium Medium Armor Plating Advanced Force Field Relay Coupler [NC] Relay Coupler [NC] Relay Coupler [NC] Relay Coupler [Swarmer] Relay Coupler [Swarmer] Relay Coupler [Grunt] Relay Coupler [Grunt] Relay Coupler [Brawler] Relay Coupler [Demolisher] Relay Coupler [Specialist] Relay Coupler [Behemoth] Thief Drone Bay Variable Charge Gun Nova Cannon Nova Cannon Hypervelocity Railgun Hypervelocity Railgun Hypervelocity Railgun Heavy Shock Bomb Launcher Improved Remote Datajack Plasma Cutter [Rating: 126] Favorites ----------- Power Antimatter Reactor Engine Improved Deuterium Engine Power Core Micro Fission Core Reactor Antimatter Reactor Propulsion Carbon-fiber Leg Treads Medium Treads Leg Carbon-fiber Leg Hover Unit Improved Linear Gravjet Flight Unit Xenon Bombardment Thruster Utility High-capacity Storage Unit Device Cooling System Storage High-capacity Storage Unit Processor Advanced Signal Interpreter Hackware Relay Coupler [Swarmer] Protection Improved Light Armor Plating Weapon Improved Remote Datajack Energy Gun Improved EM Shotgun Energy Cannon Compact HERF Cannon Ballistic Gun KE Penetrator Ballistic Cannon Heavy Flak Cannon Launcher Missile Launcher Special Weapon Improved Remote Datajack Slashing Weapon Katana Special Melee Weapon Datajack Build | -11 -10 -10 -9 -9 -9 -8 -8 -8 -8 -8 -7 -7 -7 -6 -6 -6 -6 -5 -5 -5 -5 -4 -4 -4 -4 -3 -3 -2 -2 -1 ------- Run | Scr Mat Min Mat Min Exi Min Mat Gar Mat Gar Fac Sto Gar Fac Gar Fac Gar Fac Gar Fac Gar Fac Was Fac Gar Res Gar Res Gar Acc Slots Evolved 18 | . . . 2 . . . 2 . . . 2 . . 2 . . . 2 . . . 2 . . . 2 . 2 . 2 Power 1 | . . . . . . . . . . . . . . . . . . . . . . 1 . . . . . . . . Propulsion 1 | . . . . . . . 1 . . . . . . . . . . . . . . . . . . . . . . . Utility 16 | . . . 2 . . . 1 . . . 2 . . 2 . . . 2 . . . 1 . . . 2 . 2 . 2 Weapon . | . . . . . . . . . . . . . . . . . . . . . . . . . . . . . . . Parts Attached 563 | 7 12 2 28 1 3 5 31 17 27 7 13 14 23 27 28 28 40 10 15 32 26 9 5 37 21 10 16 2 17 50 Power 38 | 1 1 . 2 . . . 2 . 1 . 1 . 2 2 2 . 1 1 1 3 2 2 2 2 1 2 1 . 2 4 Engine 20 | 1 1 . 2 . . . 2 . 1 . 1 . 2 2 2 . 1 1 1 2 1 . . . . . . . . . Core 4 | . . . . . . . . . . . . . . . . . . . . 1 1 1 . . 1 . . . . . Reactor 14 | . . . . . . . . . . . . . . . . . . . . . . 1 2 2 . 2 1 . 2 4 Propulsion 101 | 2 3 . 3 1 1 3 8 4 5 1 2 . 3 3 7 2 11 . 3 6 5 2 . 2 4 . 1 . 2 17 Treads 19 | . . . . . . . . 3 5 1 2 . 3 . 2 . . . . . . . . . . . . . . 3 Leg 70 | 2 3 . 3 1 1 3 8 1 . . . . . 3 5 2 11 . 3 6 5 2 . 2 4 . 1 . 2 2 Wheel . | . . . . . . . . . . . . . . . . . . . . . . . . . . . . . . . Hover 11 | . . . . . . . . . . . . . . . . . . . . . . . . . . . . . . 11 Flight 1 | . . . . . . . . . . . . . . . . . . . . . . . . . . . . . . 1 Utility 204 | 2 2 . 5 . 1 1 5 4 9 1 4 7 7 14 3 15 11 8 4 14 9 4 3 16 7 6 6 2 11 23 Device 45 | . . . 2 . . 1 . 1 . . 1 1 1 4 . 6 1 3 1 5 1 1 1 6 2 2 . 1 . 4 Storage 23 | 2 2 . 3 . 1 . 2 1 1 . . . . 2 . 5 . . . . . . . 1 . . 2 . 1 . Processor 8 | . . . . . . . . . . . 2 . . . . . . . . . . . 1 . 1 . . . . 4 Hackware 82 | . . . . . . . . . 5 . 1 5 4 5 1 2 4 5 1 7 3 2 . 6 4 3 2 1 7 14 Protection 46 | . . . . . . . 3 2 3 1 . 1 2 3 2 2 6 . 2 2 5 1 1 3 . 1 2 . 3 1 Artifact . | . . . . . . . . . . . . . . . . . . . . . . . . . . . . . . . Weapon 220 | 2 6 2 18 . 1 1 16 9 12 5 6 7 11 8 16 11 17 1 7 9 10 1 . 17 9 2 8 . 2 6 Energy Gun 42 | 1 4 . 13 . . 1 8 4 3 . 1 . 1 . 1 2 2 . . . . . . . . . . . . 1 Energy Cannon 31 | . . . 1 . . . 4 1 . . . 2 2 1 1 2 . . . . 2 . . 3 5 1 3 . 1 2 Ballistic Gun 40 | 1 . 2 . . . . . 1 5 2 3 . 3 2 4 . . . . 2 3 . . 6 1 . 3 . . 2 Ballistic Cannon 22 | . 1 . . . . . . . . . . . . . 5 . 8 . 3 4 1 . . . . . . . . . Launcher 36 | . 1 . 4 . . . 4 2 1 2 1 . 1 3 3 1 2 . 1 . 2 . . 5 . 1 1 . . 1 Special Weapon 32 | . . . . . . . . . . . 1 4 1 2 1 5 2 1 2 3 2 1 . 2 3 . 1 . 1 . Impact Weapon . | . . . . . . . . . . . . . . . . . . . . . . . . . . . . . . . Slashing Weapon 13 | . . . . . . . . 1 . 1 . 1 3 . 1 1 3 . 1 . . . . 1 . . . . . . Piercing Weapon . | . . . . . . . . . . . . . . . . . . . . . . . . . . . . . . . Special Melee Weapon 4 | . . . . . 1 . . . 3 . . . . . . . . . . . . . . . . . . . . . Unidentified Prototypes 12 | . . . 4 . . . 2 . . . 1 . . . . 1 . . . 1 . . . . . 2 . . . 1 Parts Lost 148 | . 2 2 5 1 . 1 7 7 5 . . . 9 5 12 1 16 . 6 15 4 . . 6 3 . 1 . 5 35 Power 22 | . . . 2 . . . . . 1 . . . 2 2 2 . 1 . 1 3 1 . . 1 1 . . . 1 4 Propulsion 39 | . . . . 1 . . 2 1 1 . . . 4 1 5 . 6 . 2 4 . . . . 1 . . . 1 10 Utility 51 | . . . . . . 1 2 2 1 . . . . 1 2 1 7 . 2 6 2 . . 3 . . . . 3 18 Weapon 36 | . 2 2 3 . . . 3 4 2 . . . 3 1 3 . 2 . 1 2 1 . . 2 1 . 1 . . 3 Highest Loss Streak 18 | . 1 2 2 1 . 1 2 6 1 . . . 6 3 5 1 7 . 4 4 2 . . 1 1 . 1 . 4 18 Average Slot Usage (%) 96 | . 99 99 98 100 100 99 99 97 99 100 100 100 93 98 98 99 97 99 96 96 96 100 93 88 92 95 95 95 98 73 Engine 5 | . 13 14 11 11 11 11 8 9 8 9 7 7 6 6 5 6 5 5 5 4 . 2 . . . . . . . . Reactor 1 | . . . . . . . . . . . . . . . . . . . . . . 2 9 10 5 4 9 8 7 4 Treads 4 | . . . . . . . . 16 26 27 23 23 16 6 . . . . . . . . . . . . . . . . Leg 14 | . 28 28 22 22 22 22 27 8 . . . . . 11 18 20 18 17 16 16 17 15 15 14 14 14 14 13 12 5 Device 5 | . . . 10 11 11 10 9 5 . . 7 6 . 11 1 6 5 9 2 3 7 4 4 7 7 9 9 13 1 1 Storage 25 | . 28 28 31 33 33 33 27 30 36 36 30 30 30 26 26 26 26 23 23 23 23 21 21 21 21 19 19 17 17 7 Processor 3 | . . . . . . . . . . . 7 7 7 6 6 6 6 5 5 5 5 5 5 5 5 4 4 4 4 3 Hackware 12 | . . . . . . . . . 1 . 1 7 12 12 19 15 8 18 21 25 13 17 17 12 16 23 23 26 37 40 Protection 4 | . . . . . . . 9 8 7 9 5 . 1 1 5 2 9 5 6 1 9 14 7 5 5 3 4 4 7 3 Energy Gun 4 | . 19 16 19 22 12 22 8 7 8 5 3 1 . . . 1 . 5 2 . . . . . . . . . . . Energy Cannon 1 | . . . 1 . . . 8 2 . . . 3 . . 1 1 . . . . . . . 1 3 3 2 4 3 1 Ballistic Gun 2 | . 4 11 . . . . . 5 7 6 7 . 5 7 4 . . . . 1 7 6 5 4 2 . 2 . . . Ballistic Cannon 1 | . 3 . . . . . . . . . . . . . 6 4 6 . 2 5 . . . . . . . . . . Special Weapon 1 | . . . . . . . . . . . . 2 1 3 . 4 1 5 3 2 1 3 5 2 4 4 2 4 4 1 Naked Turns . | . . . . . . . . . . . . . . . . . . . . . . . . . . . . . . . Heaviest Build 234 | 14 45 45 64 64 64 64 71 82 81 84 85 85 90 130 132 155 168 154 159 159 161 176 226 234 194 191 206 194 194 183 Greatest Support 84 | 20 20 20 30 30 20 30 45 60 84 84 84 84 84 54 54 51 51 50 50 55 60 60 52 52 52 52 61 61 61 70 Greatest Overweight (x) 53 | 2 2 2 5 3 3 3 2 3 2 . 1 1 4 2 8 3 53 3 3 3 3 3 4 4 5 3 3 3 4 6 Average Overweight (x) 1 | . . 2 1 2 3 2 1 1 . . . . 1 1 2 2 3 3 2 2 2 2 3 4 3 3 3 3 2 . Largest Inventory Capacity 36 | 8 16 16 22 22 22 22 22 28 28 28 28 28 28 32 32 36 36 36 36 36 36 36 36 36 36 36 36 36 36 36 Average Capacity 29 | 6 9 16 20 22 22 22 22 24 28 28 28 28 28 30 32 34 36 36 36 36 36 36 36 36 36 36 36 36 35 19 Most Carried 36 | 1 12 13 22 22 22 22 22 28 28 28 28 28 28 28 32 36 36 35 36 36 36 36 36 36 36 36 36 34 35 33 Average Carried 27 | . 7 12 19 21 21 21 21 23 26 27 27 27 26 25 28 33 34 33 34 34 35 35 35 34 33 35 35 33 29 15 Final Capacity 36 | 8 16 16 22 22 22 22 22 28 28 28 28 28 28 32 32 36 36 36 36 36 36 36 36 36 36 36 36 36 36 4 Final Carried 36 | 1 12 13 22 22 22 22 22 28 28 28 28 27 28 25 32 36 35 34 36 35 36 36 36 31 36 36 35 33 34 3 Class Distribution -------------------- 48% | Botlord-Mutant 22% | Hauler-Mutant 20% | Bothacker-Mutant 8% | Mutant Dominant Class ---------------- Mutant | -10/Materials Mutant | -10/Mines Hauler-Mutant | -9/Materials Hauler-Mutant | -9/Mines Hauler-Mutant | -9/Exiles Hauler-Mutant | -8/Mines Hauler-Mutant | -8/Materials Hauler-Mutant | -8/Garrison Bothacker-Mutant | -8/Materials Bothacker-Mutant | -8/Garrison Bothacker-Mutant | -7/Factory Bothacker-Mutant | -7/Storage Bothacker-Mutant | -7/Garrison Bothacker-Mutant | -6/Factory Hauler-Mutant | -6/Garrison Botlord-Mutant | -6/Factory Botlord-Mutant | -6/Garrison Botlord-Mutant | -5/Factory Botlord-Mutant | -5/Garrison Botlord-Mutant | -5/Factory Botlord-Mutant | -5/Garrison Botlord-Mutant | -4/Factory Botlord-Mutant | -4/Waste Botlord-Mutant | -4/Factory Botlord-Mutant | -4/Garrison Botlord-Mutant | -3/Research Botlord-Mutant | -3/Garrison Botlord-Mutant | -2/Research Botlord-Mutant | -2/Garrison Mutant | -1/Access Resources | -11 -10 -10 -9 -9 -9 -8 -8 -8 -8 -8 -7 -7 -7 -6 -6 -6 -6 -5 -5 -5 -5 -4 -4 -4 -4 -3 -3 -2 -2 -1 ----------- Run | Scr Mat Min Mat Min Exi Min Mat Gar Mat Gar Fac Sto Gar Fac Gar Fac Gar Fac Gar Fac Gar Fac Was Fac Gar Res Gar Res Gar Acc Matter Collected 14087 | 273 332 40 377 10 . 75 358 231 456 166 108 325 503 591 1303 547 1141 229 327 1391 1046 190 391 1259 740 243 390 . 476 569 Remotely . | . . . . . . . . . . . . . . . . . . . . . . . . . . . . . . . Salvage Created 17806 | 86 915 106 1157 189 . 194 1698 538 995 227 206 226 651 942 817 167 1066 219 206 834 916 190 922 2369 395 41 890 . 66 578 Parts 791 | 3 56 2 76 6 . 14 88 32 44 21 8 13 19 42 32 10 34 10 5 35 24 4 18 113 16 . 30 . 7 29 Haulers Intercepted 19 | . 2 . 5 . . . 3 . 4 . . 3 . . . . . . . 1 . 1 . . . . . . . . Recyclers Shooed 16 | . 3 . . . . 1 2 . . . 1 . . 1 . 1 . 1 . 3 . . . 2 . 1 . . . . Parts Field Recycled . | . . . . . . . . . . . . . . . . . . . . . . . . . . . . . . . Retrieved Matter . | . . . . . . . . . . . . . . . . . . . . . . . . . . . . . . . Parts Self-Destructed . | . . . . . . . . . . . . . . . . . . . . . . . . . . . . . . . Prevented . | . . . . . . . . . . . . . . . . . . . . . . . . . . . . . . . Kills | -11 -10 -10 -9 -9 -9 -8 -8 -8 -8 -8 -7 -7 -7 -6 -6 -6 -6 -5 -5 -5 -5 -4 -4 -4 -4 -3 -3 -2 -2 -1 ------- Run | Scr Mat Min Mat Min Exi Min Mat Gar Mat Gar Fac Sto Gar Fac Gar Fac Gar Fac Gar Fac Gar Fac Was Fac Gar Res Gar Res Gar Acc Combat Hostiles Destroyed 291 | . 17 3 31 4 . 1 32 15 13 12 3 2 13 11 23 3 18 3 6 10 14 1 3 31 4 . 10 . 1 7 Melee 11 | . . . . . . . . 5 . . . . 3 . . . 2 . . . . . . . . . . . . 1 Guns 116 | . 12 3 13 1 . . 8 3 12 10 3 . 2 6 7 . 3 2 2 1 10 1 3 10 1 . 2 . . 1 Cannons 59 | . 2 . . . . . 9 2 . . . 2 2 3 7 3 6 . 3 8 4 . . 3 2 . 1 . 1 1 AOE 89 | . 3 . 18 2 . 1 14 5 1 2 . . 6 2 9 . 7 . 1 1 . . . 13 . . . . . 4 Classes Destroyed 19 | 1 5 1 2 1 . 2 . 1 . 1 1 . . . . . 2 . . . . . 1 1 . . . . . . Worker 20 | . . . 2 . . . 2 . 2 . . . . 2 . . . . . 2 . . . 9 . . . . . 1 Builder 11 | . . . . . . 2 3 . . . . . . . . . . . . 3 . . . 3 . . . . . . Hauler 19 | . 2 . 5 . . . 3 . 4 . . 3 . . . . . . . 1 . 1 . . . . . . . . Recycler 16 | 1 2 . . . . 2 2 . 1 . 1 . . 2 . . . . . 3 . . . 2 . . . . . . Operator 5 | . 2 . 2 . . . . . . . . . . . . . . . . . . . . 1 . . . . . . Watcher 15 | . 2 . 4 . . . 1 . 1 . . . . . . 1 1 . . 1 2 . . 1 . 1 . . . . Swarmer 60 | . 3 . 19 . . . 10 3 . 10 . . 3 . 7 . 3 . 1 . . . . . . . . . . 1 Saboteur 1 | . . . . . . . . . . . . . . . . . . . . . . . . 1 . . . . . . Grunt 118 | . 14 2 7 3 . . 13 3 8 . . . 4 3 10 . 12 2 4 1 13 1 . 11 1 . 5 . . 1 Brawler 5 | . . . . . . . . . . 1 . . . . 1 1 1 . . . . . . . . . 1 . . . Duelist 11 | . . . . 1 . . 1 . . 1 . . 1 . 4 . . . . . . . . 3 . . . . . . Protector 1 | . . . . . . . . 1 . . . . . . . . . . . . . . . . . . . . . . Sentry 51 | . . . 5 . . . 8 7 5 . . . 4 5 1 1 1 1 . 4 1 . . 2 3 . 3 . . . Demolisher 2 | . . 1 . . . . . 1 . . . . . . . . . . . . . . . . . . . . . . Specialist 1 | . . . . . . . . . . . . . . . . . 1 . . . . . . . . . . . . . Hunter 15 | . . . . . . 1 . . . . . . 1 2 . . . . . . . . . 8 . . 1 . . 2 Programmer 23 | . . . . . . . . . . . 2 2 . 1 . 1 . . 1 5 . . . 6 1 . . . 1 3 Behemoth 1 | . . . . . . . . . . . . . . . . . 1 . . . . . . . . . . . . . Compactor 3 | . . . . . . . . . . . . . . . . . . . . . . . 3 . . . . . . . Thug 1 | . . . . . . . . . . . 1 . . . . . . . . . . . . . . . . . . . Best Kill Streak 14 | 1 4 2 6 2 . 2 8 4 3 6 2 1 6 6 4 2 4 1 2 3 3 2 1 14 1 1 3 . 1 6 Combat Bots Only 8 | . 3 2 5 2 . 1 5 4 3 6 2 1 6 3 4 1 4 1 2 2 3 1 1 8 1 . 3 . 1 5 Max Kills in Single Turn 5 | 1 3 1 4 1 . 2 5 3 1 2 1 1 4 3 4 1 3 1 1 2 1 1 1 5 1 1 1 . 1 3 Gunslinging 1 | . . . 1 . . . 1 . . 1 . . . . . . . . . . . . . . . . . . . . Exploded 4 | . 3 . 2 1 . 1 4 3 1 2 . . 4 2 4 . 3 . 1 1 . . . 2 . . . . . 3 Melee 1 | . . . . . . . . 1 . . . . 1 . . . 1 . . . . . . . . . . . . 1 Uniques/NPCs Destroyed . | . . . . . . . . . . . . . . . . . . . . . . . . . . . . . . . Combat | -11 -10 -10 -9 -9 -9 -8 -8 -8 -8 -8 -7 -7 -7 -6 -6 -6 -6 -5 -5 -5 -5 -4 -4 -4 -4 -3 -3 -2 -2 -1 -------- Run | Scr Mat Min Mat Min Exi Min Mat Gar Mat Gar Fac Sto Gar Fac Gar Fac Gar Fac Gar Fac Gar Fac Was Fac Gar Res Gar Res Gar Acc Damage Taken 32360 | . 539 232 862 303 . 84 1283 1032 869 417 220 355 2321 1425 1894 277 2993 161 1146 2065 830 223 . 3676 676 388 1050 . 1890 5149 Core 3817 | . 89 43 156 44 . 20 152 125 55 73 16 30 357 141 174 15 352 . 202 123 78 . . 102 65 . 73 . 24 1308 Absorbed by Shields 996 | . . . . . . . . 43 . . . . 11 . . . 73 . 342 . 217 . . 201 25 . 84 . . . Core Remaining (%) 61 | 100 . 47 . . . 45 . . . 26 . . 42 . . . 19 . . . 59 . . . 85 . 94 . 98 . Volleys Fired 1355 | 1 59 9 77 10 . 8 72 35 70 25 17 29 44 67 64 39 53 38 50 84 94 18 32 137 47 21 65 . 58 32 Largest 2 | 2 2 2 2 2 . 2 2 2 2 2 2 1 2 2 2 2 2 1 2 2 2 2 1 2 2 1 2 . 1 2 Hottest 225 | 60 90 90 124 90 . 90 136 136 79 78 55 65 78 56 122 106 106 60 106 106 90 66 40 88 94 94 113 . 113 225 Shots Fired 1986 | 2 117 16 145 20 . 16 127 62 137 43 24 29 49 95 121 52 74 37 67 127 136 29 35 180 56 21 72 . 57 40 Gun 1066 | 2 86 16 132 20 . 16 63 32 135 42 22 4 24 65 55 13 10 18 10 22 88 23 26 94 16 . 15 . . 17 Cannon 519 | . 30 . 4 . . . 56 26 . . . 8 5 7 61 22 43 . 35 72 25 . . 29 22 7 37 . 18 12 Launcher 78 | . 1 . 9 . . . 8 4 2 1 . . 2 3 4 . 7 . 2 . . . . 21 . . 8 . . 6 Special 323 | . . . . . . . . . . . 2 17 18 20 1 17 14 19 20 33 23 6 9 36 18 14 12 . 39 5 Kinetic 835 | 1 60 4 . . . . . 14 68 21 15 1 18 65 103 12 43 . 35 94 91 23 26 94 16 . 15 . . 16 Thermal 270 | 1 . . 8 . . . 14 44 67 21 . 8 7 7 13 29 . . . . 22 . . . . . 1 . 15 13 Explosive 47 | . 1 . 9 . . . 8 4 2 1 . . 2 2 4 . 7 . 2 . . . . 5 . . . . . . Electromagnetic 517 | . 56 12 128 20 . 16 105 . . . 7 3 4 1 . . 10 18 10 . . . . 45 22 7 44 . 3 6 Robot Hit Streak 32 | 1 8 6 32 12 . 5 20 16 20 7 8 12 15 14 10 15 11 25 13 14 13 5 22 15 9 6 10 . 11 13 Robot Miss Streak 10 | . 3 2 5 2 . 3 4 4 3 3 2 2 3 10 10 6 9 1 8 10 6 4 1 8 3 3 4 . 2 3 Penetration Max 1 | . . . . . . . . . . . . . . . . . . . . 1 1 . 1 1 . . . . . 1 Secondary Targets 17 | . 1 1 3 . . . 1 . 1 3 . . . 1 2 . . . . . . . . 3 1 . . . . . Max Gunslinging Chain 1 | . 1 1 1 . . . 1 . 1 1 . . . 1 1 . . . . . . . . 1 1 . . . . . Shots Hit Robots 1530 | 1 82 13 105 17 2 13 92 40 112 22 17 28 64 90 98 41 91 32 60 103 90 17 29 116 33 14 43 . 38 27 Core Hits 931 | 1 46 8 69 9 . 6 75 22 39 13 8 5 40 91 108 20 71 5 21 79 31 6 10 95 10 1 16 . 3 23 Critical Hits 35 | 1 . . 1 1 . 1 . . 2 1 . . 2 . . 1 . . . . 8 3 2 6 . . 3 . . 3 Critical Kills 12 | 1 . . . . . 1 . . 1 1 . . . . . . . . . . 3 1 . 2 . . 2 . . . Critical Parts Destroyed 20 | . . . . 1 . . . . 1 . . . 2 . . 1 . . . . 5 2 . 4 . . 1 . . 3 Melee Attacks 125 | . . . . . 2 . . 8 18 1 . 13 35 . 2 1 37 . 4 . . . . 4 . . . . . . Impact . | . . . . . . . . . . . . . . . . . . . . . . . . . . . . . . . Slashing 105 | . . . . . . . . 8 . 1 . 13 35 . 2 1 37 . 4 . . . . 4 . . . . . . Piercing . | . . . . . . . . . . . . . . . . . . . . . . . . . . . . . . . Sneak Attacks 10 | . . . . . 2 . . . 5 . . 2 . . . . . . . . . . . 1 . . . . . . Combat Hostiles 2 | . . . . . 2 . . . . . . . . . . . . . . . . . . . . . . . . . Follow-up Attacks . | . . . . . . . . . . . . . . . . . . . . . . . . . . . . . . . Damage Inflicted 40605 | 13 1123 175 2797 462 . 200 2950 1125 1717 527 288 602 1813 1966 2429 722 4757 364 834 2389 1854 334 594 6571 721 181 1420 . 298 1379 Guns 14207 | 13 735 175 1327 278 . 152 818 265 1536 418 288 22 278 1378 726 211 148 364 192 388 1335 334 594 1846 224 . 64 . . 98 Cannons 10361 | . 296 . 62 . . . 984 329 . . . 228 134 189 1016 449 1094 . 385 1775 519 . . 754 497 181 833 . 298 338 Explosions 12445 | . 92 . 1408 184 . 48 1148 298 181 109 . . 648 393 687 . 1474 . 250 226 . . . 3844 . . 523 . . 932 Melee 3488 | . . . . . . . . 233 . . . 352 751 . . . 2041 . . . . . . 111 . . . . . . Ramming 42 | . . . . . . . . . . . . . 2 6 . . . . 7 . . . . 16 . . . . . 11 Kinetic 13363 | 13 575 43 . . . . . 121 731 136 160 . 209 1378 1568 233 1094 . 385 2163 1394 334 594 1846 224 . 64 . . 98 Thermal 6831 | . . . 475 184 . 48 508 473 805 282 . 228 134 189 174 489 . . . 226 460 . . 918 . . 85 . 298 855 Explosive 7903 | . 92 . 995 . . . 822 298 181 109 . . 648 301 687 . 1474 . 250 . . . . 2046 . . . . . . Electromagnetic 8978 | . 456 132 1327 278 . 152 1620 . . . 128 22 69 92 . . 148 364 192 . . . . 1634 497 181 1271 . . 415 Impact . | . . . . . . . . . . . . . . . . . . . . . . . . . . . . . . . Slashing 3488 | . . . . . . . . 233 . . . 352 751 . . . 2041 . . . . . . 111 . . . . . . Piercing . | . . . . . . . . . . . . . . . . . . . . . . . . . . . . . . . Highest Corruption 21 | . 1 1 . . . . . . . . 2 4 4 1 1 3 3 1 2 14 14 . 17 17 19 . . . 4 21 Average Corruption 7 | . 1 1 . . . . . . . . 1 2 4 1 1 2 3 1 1 11 14 . 14 17 18 . . . 3 17 Corruption Purged . | . . . . . . . . . . . . . . . . . . . . . . . . . . . . . . . Effects 608 | . 3 3 . . . . . . . . . 10 28 1 5 13 30 3 5 89 96 . 25 124 103 . . . 32 38 Message Errors 125 | . 2 1 . . . . . . . . . 2 9 . 3 2 9 . 1 20 18 . 4 19 19 . . . 7 9 Matter Fused 125 | . . . . . . . . . . . . . 8 . . 5 8 . . 21 18 . 1 20 27 . . . 10 7 Heat Flow Errors 63 | . . . . . . . . . . . . 2 4 . . 2 6 . 1 6 10 . 3 12 10 . . . 4 3 Energy Discharges 60 | . 1 . . . . . . . . . . 3 2 . . 1 1 . 2 10 10 . 2 9 11 . . . 5 3 Parts Rejected 5 | . . . . . . . . . . . . . . . . . . . . . . . . 4 . . . . . 1 Data Loss (minor) 50 | . . 2 . . . . . . . . . 2 2 . 1 2 4 2 1 5 7 . 2 7 9 . . . 4 . Data Loss (major) 16 | . . . . . . . . . . . . . . . . . . . . 2 5 . 2 2 4 . . . . 1 Misfires 14 | . . . . . . . . . . . . . . . . . . . . 5 . . 3 1 5 . . . . . Alerts 4 | . . . . . . . . . . . . . . . . . . . . 1 1 . . 1 . . . . . 1 Misdirections 47 | . . . . . . . . . . . . . . . . . . . . 7 6 . 4 7 11 . . . . 12 Targeting Errors 85 | . . . . . . . . . . . . 1 3 . 1 1 2 . . 11 18 . 4 36 6 . . . 1 1 Weapon Failures 14 | . . . . . . . . . . . . . . 1 . . . 1 . 1 3 . . 6 1 . . . 1 . Overload Shots 2 | . . . . . . . . . . . . . . . . . . . . . 1 . . . . . . . . 1 Overflow Damage 1032 | . 4 . 31 1 . . 39 . . 10 . 6 1 6 7 36 355 . 14 106 6 . . 299 . 28 38 . 26 19 Projectiles 172 | . 4 . 11 . . . 13 . . . . 6 . . . 36 1 . . 1 6 . . 32 . 28 8 . 26 . Explosions 505 | . . . 20 1 . . 26 . . 10 . . . 6 7 . 81 . 14 105 . . . 186 . . 30 . . 19 Melee 355 | . . . . . . . . . . . . . 1 . . . 273 . . . . . . 81 . . . . . . Knockbacks 75 | . 4 . . . . . . . . . . . . . 27 2 8 . 11 19 4 . . . . . . . . . Impact . | . . . . . . . . . . . . . . . . . . . . . . . . . . . . . . . Kinetic 73 | . 4 . . . . . . . . . . . . . 26 2 8 . 10 19 4 . . . . . . . . . Secondary 2 | . . . . . . . . . . . . . . . 1 . . . 1 . . . . . . . . . . . Self-Inflicted Damage 1125 | . . . 32 44 . . 37 20 . 54 . . 43 3 130 . 42 . 60 137 . . . 254 . . 68 . . 201 Shots 38 | . . . 1 1 . . 2 2 . 1 . . 2 . 5 . 1 . 2 2 . . . 11 . . 1 . . 7 Rammed 16 | . . . . . . . . . . . . . 1 1 . . . . 1 . . . . 2 . . . . . 11 Targets Rammed 16 | . . . . . . . . . . . . . 1 1 . . . . 1 . . . . 2 . . . . . 11 Kicked . | . . . . . . . . . . . . . . . . . . . . . . . . . . . . . . . Crushed . | . . . . . . . . . . . . . . . . . . . . . . . . . . . . . . . Highest Temperature 312 | . 298 105 1 1 . 5 21 117 162 128 8 273 257 . 303 198 312 36 193 250 281 230 312 303 227 . 25 . 234 221 Average Temperature 68 | . 72 41 1 1 . 5 8 25 37 47 3 55 76 . 91 45 91 10 44 47 60 94 114 116 59 . 12 . 74 60 Received Heat Transfer 5875 | . 276 12 225 72 . . 504 213 297 . 12 . 585 405 603 51 986 48 131 99 330 24 . 379 52 27 148 . 162 234 Effects 5 | . . . . . . . . . . . . . 2 . . . . . . 1 . . 2 . . . . . . . Energy Bleed 1 | . . . . . . . . . . . . . . . . . . . . 1 . . . . . . . . . . Interference 4 | . . . . . . . . . . . . . 2 . . . . . . . . . 2 . . . . . . . Siege Activations . | . . . . . . . . . . . . . . . . . . . . . . . . . . . . . . . Robots Corrupted 17 | . . . . 1 . . 1 . . . . . . . . . . 1 . . . . . 5 2 . 7 . . . Combat Hostiles 16 | . . . . 1 . . 1 . . . . . . . . . . 1 . . . . . 5 1 . 7 . . . Parts Fried 53 | . . . 8 2 . . 12 . . . 1 . 1 . . . . 2 3 . . . . 13 2 3 5 . . 1 Impact Corruptions . | . . . . . . . . . . . . . . . . . . . . . . . . . . . . . . . Robots Melted . | . . . . . . . . . . . . . . . . . . . . . . . . . . . . . . . Combat Hostiles . | . . . . . . . . . . . . . . . . . . . . . . . . . . . . . . . Parts Melted 9 | . . 1 . . . . . 1 2 . . 1 1 1 . . . . . . 2 . . . . . . . . . Heat Transferred 8814 | . . . 511 200 . . 733 863 1961 555 . 259 185 259 296 851 . . . 100 605 . . 600 . . 100 . 240 496 Parts Sabotaged 8 | . . . . . . . . . . . . . . . . . . . . . . . . . . . . . 4 4 Parts Stolen . | . . . . . . . . . . . . . . . . . . . . . . . . . . . . . . . Parts Stripped . | . . . . . . . . . . . . . . . . . . . . . . . . . . . . . . . Power Chain Reactions 20 | . . . 6 2 . 1 4 . . . . . . . . . . . . . . . . 2 . . 3 . . 2 Missiles Intercepted . | . . . . . . . . . . . . . . . . . . . . . . . . . . . . . . . Alert | -11 -10 -10 -9 -9 -9 -8 -8 -8 -8 -8 -7 -7 -7 -6 -6 -6 -6 -5 -5 -5 -5 -4 -4 -4 -4 -3 -3 -2 -2 -1 ------- Run | Scr Mat Min Mat Min Exi Min Mat Gar Mat Gar Fac Sto Gar Fac Gar Fac Gar Fac Gar Fac Gar Fac Was Fac Gar Res Gar Res Gar Acc Peak Influence 1169 | 5 197 121 353 242 . 68 451 785 560 578 354 227 303 283 715 420 600 474 443 263 568 381 150 1169 1102 673 787 442 611 1096 Initial 790 | . 3 71 . 137 . . . 293 382 192 303 81 59 158 198 375 82 315 267 232 86 287 133 . 790 619 327 442 331 366 Average 341 | 2 129 58 189 233 . 26 251 543 287 459 259 102 173 113 447 196 374 345 346 108 316 357 132 424 978 583 572 442 465 701 Maximum Alert Level 4 | . . . 1 1 . . 2 3 2 2 1 1 1 1 3 2 2 2 2 1 2 1 . 4 4 2 3 2 2 3 Low Security (%) 36 | 100 100 100 41 6 . 100 43 . 11 6 35 96 76 92 3 49 21 . . 78 36 . 100 32 . . . . . . Level 1 30 | . . . 58 93 . . 36 33 75 9 64 3 23 7 50 41 24 95 85 21 25 100 . 27 . . 11 . 20 12 Level 2 22 | . . . . . . . 20 42 13 83 . . . . 42 8 54 4 14 . 38 . . 15 . 100 71 100 79 31 Level 3 9 | . . . . . . . . 23 . . . . . . 3 . . . . . . . . 19 94 . 16 . . 56 Level 4 . | . . . . . . . . . . . . . . . . . . . . . . . . 5 5 . . . . . Level 5 . | . . . . . . . . . . . . . . . . . . . . . . . . . . . . . . . High Security . | . . . . . . . . . . . . . . . . . . . . . . . . . . . . . . . Max Security . | . . . . . . . . . . . . . . . . . . . . . . . . . . . . . . . Squads Dispatched 74 | . 4 . 1 . . . 3 . 2 . 2 4 . 7 . 4 . 3 . 9 . 1 . 12 . 2 . . . 20 Investigation 14 | . 1 . 1 . . . . . . . . . . 1 . 1 . . . . . . . . . . . . . 10 Extermination 17 | . . . . . . . . . . . 2 2 . 1 . 3 . 1 . 4 . . . 3 . . . . . 1 Reinforcement 25 | . 3 . . . . . 3 . 1 . . . . 2 . . . 1 . 4 . 1 . 5 . . . . . 5 Assault 6 | . . . . . . . . . . . . 2 . . . . . . . . . . . 2 . 1 . . . 1 Garrison 12 | . . . . . . . . . 1 . . . . 3 . . . 1 . 1 . . . 2 . 1 . . . 3 Intercept . | . . . . . . . . . . . . . . . . . . . . . . . . . . . . . . . Construction Impeded 8 | . . . . . . . 1 . . . . . . 1 . . . . . 2 . . . 2 . . . . . 2 Haulers Reinforced 4 | . . . . . . . . . . . . . . . . . . . . 2 . 1 . . . . . . . 1 Stealth | -11 -10 -10 -9 -9 -9 -8 -8 -8 -8 -8 -7 -7 -7 -6 -6 -6 -6 -5 -5 -5 -5 -4 -4 -4 -4 -3 -3 -2 -2 -1 --------- Run | Scr Mat Min Mat Min Exi Min Mat Gar Mat Gar Fac Sto Gar Fac Gar Fac Gar Fac Gar Fac Gar Fac Was Fac Gar Res Gar Res Gar Acc Distress Signals 22 | . 2 . 1 . . . 2 . 4 . . 1 . . . 1 . . . 5 . . . 2 1 . . . . 3 Communications Jammed 6 | . . . . . . . . . . . . . . . . . . . . . . . . . 6 . . . . . Distress Signals 6 | . . . . . . . . . . . . . . . . . . . . . . . . . 6 . . . . . Times Spotted 749 | . 30 3 40 4 . 5 43 15 38 12 3 19 26 29 26 18 45 23 22 39 50 4 6 56 23 8 31 . 34 97 Peak Tracking Total 12 | . 4 2 6 2 . 3 8 4 5 6 2 4 6 4 7 4 10 5 9 6 9 3 3 6 4 5 7 . 9 12 Tactical Retreats 70 | . . . 2 . . . 4 . . . . . . 1 2 1 14 3 1 3 15 . . 1 . . 9 . . 14 Traps | -11 -10 -10 -9 -9 -9 -8 -8 -8 -8 -8 -7 -7 -7 -6 -6 -6 -6 -5 -5 -5 -5 -4 -4 -4 -4 -3 -3 -2 -2 -1 ------- Run | Scr Mat Min Mat Min Exi Min Mat Gar Mat Gar Fac Sto Gar Fac Gar Fac Gar Fac Gar Fac Gar Fac Was Fac Gar Res Gar Res Gar Acc Traps Triggered 59 | . 2 . . . . . 1 8 1 . . . 9 1 2 2 4 . 3 1 4 1 . . 3 1 6 . 6 4 Indirectly 3 | . . . . . . . . . . . . . . . . . . . . . . . . . . . 3 . . . Trap Hack Attempts . | . . . . . . . . . . . . . . . . . . . . . . . . . . . . . . . Triggered . | . . . . . . . . . . . . . . . . . . . . . . . . . . . . . . . Disarmed 5 | . . . 5 . . . . . . . . . . . . . . . . . . . . . . . . . . . Reprogrammed . | . . . . . . . . . . . . . . . . . . . . . . . . . . . . . . . Reused . | . . . . . . . . . . . . . . . . . . . . . . . . . . . . . . . Traps Extracted . | . . . . . . . . . . . . . . . . . . . . . . . . . . . . . . . Installed . | . . . . . . . . . . . . . . . . . . . . . . . . . . . . . . . Triggered . | . . . . . . . . . . . . . . . . . . . . . . . . . . . . . . . Machines | -11 -10 -10 -9 -9 -9 -8 -8 -8 -8 -8 -7 -7 -7 -6 -6 -6 -6 -5 -5 -5 -5 -4 -4 -4 -4 -3 -3 -2 -2 -1 ---------- Run | Scr Mat Min Mat Min Exi Min Mat Gar Mat Gar Fac Sto Gar Fac Gar Fac Gar Fac Gar Fac Gar Fac Was Fac Gar Res Gar Res Gar Acc Machines Disabled 86 | . . . 5 . . . 1 3 4 2 1 3 3 . 3 . 5 3 2 3 4 1 . 24 3 2 4 . 7 3 Max in Single Turn 6 | . . . 2 . . . 1 1 1 1 1 1 1 . 1 . 1 . 1 2 1 1 . 6 1 1 1 . 1 1 Garrison Access 2 | . . . . . . . . . . . . . . . . . . . . . . . . 1 . . . . . 1 Garrison Relay 31 | . . . . . . . . 3 . 2 . . 3 . 2 . 4 . 2 . 4 . . . 3 . 4 . 4 . Phase Generator 1 | . . . . . . . . . . . . . 1 . . . . . . . . . . . . . . . . . Machines Sabotaged . | . . . . . . . . . . . . . . . . . . . . . . . . . . . . . . . Garrisons Compromised 1 | . . . . . . . . . . . . . . . . . . . . 1 . . . . . . . . . . Overloaded Fab Kills . | . . . . . . . . . . . . . . . . . . . . . . . . . . . . . . . Fab Network Shutdowns . | . . . . . . . . . . . . . . . . . . . . . . . . . . . . . . . Hacking | -11 -10 -10 -9 -9 -9 -8 -8 -8 -8 -8 -7 -7 -7 -6 -6 -6 -6 -5 -5 -5 -5 -4 -4 -4 -4 -3 -3 -2 -2 -1 --------- Run | Scr Mat Min Mat Min Exi Min Mat Gar Mat Gar Fac Sto Gar Fac Gar Fac Gar Fac Gar Fac Gar Fac Was Fac Gar Res Gar Res Gar Acc Machines Accessed 84 | . 2 1 10 . 4 1 6 . 9 . 3 6 . 7 . 7 . 1 . 5 . . . 7 . 2 . 1 . 12 Terminals 54 | . 2 . 10 . . 1 5 . 8 . 2 5 . 4 . 4 . . . 2 . . . 5 . . . . . 6 Fabricators 9 | . . . . . . . . . . . 1 . . 2 . 1 . . . 1 . . . 1 . 1 . . . 2 Repair Stations 2 | . . . . . . . . . . . . . . . . 1 . . . 1 . . . . . . . . . . Recycling Units . | . . . . . . . . . . . . . . . . . . . . . . . . . . . . . . . Scanalyzers . | . . . . . . . . . . . . . . . . . . . . . . . . . . . . . . . Garrison Access 14 | . . . . . . . 1 . 1 . . 1 . 1 . 1 . 1 . 1 . . . 1 . 1 . 1 . 4 Total Hacks 239 | . 6 1 42 . 8 4 25 . 34 . 6 14 . 18 . 16 . 2 . 9 . . . 20 . 3 . 1 . 30 Successful 121 | . 4 1 25 . 8 3 12 . 12 . . 9 . 10 . 8 . 1 . 6 . . . 12 . 2 . 1 . 7 Failed 118 | . 2 . 17 . . 1 13 . 22 . 6 5 . 8 . 8 . 1 . 3 . . . 8 . 1 . . . 23 Catastrophic 28 | . . . 1 . . . . . 5 . 1 2 . 2 . 2 . 1 . . . . . 3 . . . . . 11 Database Lockouts . | . . . . . . . . . . . . . . . . . . . . . . . . . . . . . . . Manual 152 | . 5 . 38 . 4 4 15 . 32 . 1 10 . 12 . 5 . 1 . 2 . . . 8 . . . . . 15 Terminals 182 | . 6 . 42 . . 4 22 . 33 . 4 13 . 12 . 10 . . . 4 . . . 16 . . . . . 16 Fabricators 20 | . . . . . . . . . . . 2 . . 5 . 3 . . . 2 . . . 3 . 2 . . . 3 Repair Stations 4 | . . . . . . . . . . . . . . . . 2 . . . 2 . . . . . . . . . . Recycling Units . | . . . . . . . . . . . . . . . . . . . . . . . . . . . . . . . Scanalyzers . | . . . . . . . . . . . . . . . . . . . . . . . . . . . . . . . Garrison Access 24 | . . . . . . . 3 . 1 . . 1 . 1 . 1 . 2 . 1 . . . 1 . 1 . 1 . 11 Terminal Hacks 58 | . 2 1 17 . 8 2 7 . 6 . . 4 . 3 . 2 . . . . . . . 5 . . . . . 1 Record 7 | . . . . . 7 . . . . . . . . . . . . . . . . . . . . . . . . . Part Schematic 1 | . . . 1 . . . . . . . . . . . . . . . . . . . . . . . . . . . Prototype ID Bank 2 | . . . . . . . 1 . . . . . . . . . . . . . . . . 1 . . . . . . Open Door 1 | . . 1 . . . . . . . . . . . . . . . . . . . . . . . . . . . . Level Access Points 2 | . . . . . . . . . . . . 1 . . . . . . . . . . . 1 . . . . . . Branch Access Points 3 | . 1 . 1 . . . . . . . . . . . . . . . . . . . . 1 . . . . . . Emergency Access Points 1 | . . . . . . . . . . . . . . . . . . . . . . . . . . . . . . 1 Terminal Index 4 | . . . 1 . . . . . . . . . . 1 . 1 . . . . . . . 1 . . . . . . Fabricator Index 2 | . . . . . . . . . . . . 1 . 1 . . . . . . . . . . . . . . . . Garrison Index 1 | . . . . . . . 1 . . . . . . . . . . . . . . . . . . . . . . . Alert Level 10 | . . . 4 . . 1 1 . 1 . . 1 . 1 . . . . . . . . . 1 . . . . . . Unreport Threat 4 | . . . 1 . . . 1 . 1 . . . . . . 1 . . . . . . . . . . . . . . Locate Traps 1 | . . . 1 . . . . . . . . . . . . . . . . . . . . . . . . . . . Disarm Traps 1 | . . . 1 . . . . . . . . . . . . . . . . . . . . . . . . . . . Hauler Manifests 1 | . . . . . . . 1 . . . . . . . . . . . . . . . . . . . . . . . Zone Layout 16 | . 1 . 7 . . 1 2 . 4 . . 1 . . . . . . . . . . . . . . . . . . EX-Prototype ID Bank 1 | . . . . . 1 . . . . . . . . . . . . . . . . . . . . . . . . . Fabricator Hacks 13 | . . . . . . . . . . . . . . 4 . 3 . . . 2 . . . 2 . 1 . . . 1 Load Schematic 7 | . . . . . . . . . . . . . . 2 . 1 . . . 1 . . . 1 . 1 . . . 1 Build 6 | . . . . . . . . . . . . . . 2 . 2 . . . 1 . . . 1 . . . . . . Repair Station Hacks 2 | . . . . . . . . . . . . . . . . . . . . 2 . . . . . . . . . . Scan Component 1 | . . . . . . . . . . . . . . . . . . . . 1 . . . . . . . . . . Repair 1 | . . . . . . . . . . . . . . . . . . . . 1 . . . . . . . . . . Recycling Unit Hacks . | . . . . . . . . . . . . . . . . . . . . . . . . . . . . . . . Scanalyzer . | . . . . . . . . . . . . . . . . . . . . . . . . . . . . . . . Garrison Access Hacks 11 | . . . . . . . 1 . 1 . . 1 . 1 . 1 . 1 . 1 . . . 1 . 1 . 1 . 1 Unlock Access 10 | . . . . . . . 1 . 1 . . 1 . 1 . 1 . 1 . 1 . . . 1 . 1 . 1 . . Coupler Status 1 | . . . . . . . . . . . . . . . . . . . . . . . . . . . . . . 1 Unauthorized Hacks 37 | . 2 . 8 . . 1 4 . 5 . . 4 . 2 . 2 . . . 1 . . . 4 . . . . . 4 Terminals 33 | . 2 . 8 . . 1 4 . 5 . . 4 . 2 . 2 . . . 1 . . . 3 . . . . . 1 Track 2 | . . . 1 . . . . . . . . 1 . . . . . . . . . . . . . . . . . . Botnet 29 | . 2 . 7 . . 1 4 . 4 . . 2 . 2 . 2 . . . 1 . . . 3 . . . . . 1 Disrupt 1 | . . . . . . . . . 1 . . . . . . . . . . . . . . . . . . . . . Operators 1 | . . . . . . . . . . . . 1 . . . . . . . . . . . . . . . . . . Fabricators 1 | . . . . . . . . . . . . . . . . . . . . . . . . 1 . . . . . . Prioritize 1 | . . . . . . . . . . . . . . . . . . . . . . . . 1 . . . . . . Repair Stations . | . . . . . . . . . . . . . . . . . . . . . . . . . . . . . . . Recycling Units . | . . . . . . . . . . . . . . . . . . . . . . . . . . . . . . . Scanalyzers . | . . . . . . . . . . . . . . . . . . . . . . . . . . . . . . . Garrison Access 3 | . . . . . . . . . . . . . . . . . . . . . . . . . . . . . . 3 Eject 3 | . . . . . . . . . . . . . . . . . . . . . . . . . . . . . . 3 Data Cores Recovered 2 | . . . 2 . . . . . . . . . . . . . . . . . . . . . . . . . . . Used . | . . . . . . . . . . . . . . . . . . . . . . . . . . . . . . . Hacking Detections 71 | . 2 . 10 . . . 6 . 8 . 3 6 . 6 . 5 . 1 . 5 . . . 7 . 1 . 1 . 10 Full Trace Events 9 | . . . 1 . . . . . . . . . . 1 . 1 . . . . . . . . . . . . . 6 Feedback Events 1 | . . . . . . . . . . . . . . . . . . . . . . . . . . . . . . 1 Corruption 1 | . . . . . . . . . . . . . . . . . . . . . . . . . . . . . . 1 Feedback Blocked . | . . . . . . . . . . . . . . . . . . . . . . . . . . . . . . . Robot Schematics Acquired . | . . . . . . . . . . . . . . . . . . . . . . . . . . . . . . . Robots Built . | . . . . . . . . . . . . . . . . . . . . . . . . . . . . . . . Matter . | . . . . . . . . . . . . . . . . . . . . . . . . . . . . . . . Time . | . . . . . . . . . . . . . . . . . . . . . . . . . . . . . . . Total Robot Build Rating . | . . . . . . . . . . . . . . . . . . . . . . . . . . . . . . . Part Schematics Acquired 1 | . . . 1 . . . . . . . . . . . . . . . . . . . . . . . . . . . Parts Built 5 | . . . . . . . . . . . . . . 2 . 2 . . . . . . . 1 . . . . . . Matter 612 | . . . . . . . . . . . . . . 204 . 204 . . . 102 . . . 102 . . . . . . Time 246 | . . . . . . . . . . . . . . 42 . 102 . . . 51 . . . 51 . . . . . . Total Part Build Rating 5 | . . . . . . . . . . . . . . 2 . 2 . . . . . . . 1 . . . . . . Parts Repaired 1 | . . . . . . . . . . . . . . . . . . . . 1 . . . . . . . . . . Time 50 | . . . . . . . . . . . . . . . . . . . . 50 . . . . . . . . . . Parts Recycled . | . . . . . . . . . . . . . . . . . . . . . . . . . . . . . . . Recycled Matter . | . . . . . . . . . . . . . . . . . . . . . . . . . . . . . . . Retrieved Matter . | . . . . . . . . . . . . . . . . . . . . . . . . . . . . . . . Retrieved Components . | . . . . . . . . . . . . . . . . . . . . . . . . . . . . . . . Parts Scanalyzed . | . . . . . . . . . . . . . . . . . . . . . . . . . . . . . . . Part Schematics Acquired . | . . . . . . . . . . . . . . . . . . . . . . . . . . . . . . . Parts Damaged . | . . . . . . . . . . . . . . . . . . . . . . . . . . . . . . . Bothacking | -11 -10 -10 -9 -9 -9 -8 -8 -8 -8 -8 -7 -7 -7 -6 -6 -6 -6 -5 -5 -5 -5 -4 -4 -4 -4 -3 -3 -2 -2 -1 ------------ Run | Scr Mat Min Mat Min Exi Min Mat Gar Mat Gar Fac Sto Gar Fac Gar Fac Gar Fac Gar Fac Gar Fac Was Fac Gar Res Gar Res Gar Acc Used RIF Installer 10 | . . . . . . . . 1 . 1 . . 1 . 1 . 1 . 1 . 1 . . . 1 . 1 . 1 . Coupler Efficiency 2 | . . . . . . . . . . 1 . . . . . . . . 1 . . . . . . . . . . . Threat Obfuscator 1 | . . . . . . . . . . . . . . . . . . . . . . . . . 1 . . . . . Zone Cloak 1 | . . . . . . . . . . . . . . . . . . . . . . . . . . . 1 . . . Robot Detection 1 | . . . . . . . . . . . . . . . . . . . . . 1 . . . . . . . . . Structural Interface 1 | . . . . . . . . . . . . . . . . . 1 . . . . . . . . . . . . . Program Shield 1 | . . . . . . . . . . . . . 1 . . . . . . . . . . . . . . . . . Autooverride 1 | . . . . . . . . . . . . . . . 1 . . . . . . . . . . . . . . . Autoassimilate 1 | . . . . . . . . . . . . . . . . . . . . . . . . . . . . . 1 . Robots Hacked 204 | . . . . . . . . . 8 . 1 10 10 12 2 6 7 12 10 15 10 2 6 13 13 9 10 . 22 26 Non-combat 25 | . . . . . . . . . . . . 4 . 4 . . . 1 . 5 . 1 . 7 . 3 . . . . Combat 179 | . . . . . . . . . 8 . 1 6 10 8 2 6 7 11 10 10 10 1 6 6 13 6 10 . 22 26 Autooverrided 33 | . . . . . . . . . . . . . . . 2 2 . 1 . 1 1 . . . 3 . 4 . 5 14 Autoassimilated 11 | . . . . . . . . . . . . . . . . . . . . . . . . . . . . . 1 10 Robot Hacks Applied 175 | . . . . . . . . . 8 . 1 11 11 12 . 5 8 12 10 17 9 4 8 15 11 9 6 . 16 2 parse_system 4 | . . . . . . . . . . . . 1 1 . . . 1 . . . . . . . . . . . 1 . no_distress 3 | . . . . . . . . . . . . . . . . . . . . . . 1 . 2 . . . . . . find_chute 3 | . . . . . . . . . . . . . . 2 . . . 1 . . . . . . . . . . . . find_fabricator 1 | . . . . . . . . . . . . . . . . . . . . . . 1 . . . . . . . . drop_inventory 6 | . . . . . . . . . . . . 1 . . . . . . . 3 . 1 . . . 1 . . . . ignore_parts 1 | . . . . . . . . . . . . . . . . . . . . . . . . 1 . . . . . . map_route 10 | . . . . . . . . . . . . 2 . 1 . . . . . 2 . . . 3 . 2 . . . . ignore_targets 8 | . . . . . . . . . . . . . . . . . . . . . . . 8 . . . . . . . find_garrison 1 | . . . . . . . . . . . . . . . . . . 1 . . . . . . . . . . . . spike_heat 1 | . . . . . . . . . . . . . . . . . . 1 . . . . . . . . . . . . overload_power 4 | . . . . . . . . . . . . 1 . . . . . 1 . 1 . . . 1 . . . . . . disable_weapons 3 | . . . . . . . . . . . . . . . . . . . 1 1 . . . . 1 . . . . . overwrite_iff 5 | . . . . . . . . . 1 . . . . . . . 1 2 . . 1 . . . . . . . . . streamctrl_high 2 | . . . . . . . . . . . . . . 1 . . . . 1 . . . . . . . . . . . formatsys_low 2 | . . . . . . . . . . . . 1 . . . . . . . . . . . 1 . . . . . . formatsys_high 121 | . . . . . . . . . 7 . 1 5 10 8 . 5 6 6 8 10 8 1 . 7 10 6 6 . 15 2 Relay Couplers Released 127 | . . . . . . . . 10 . 8 . 3 10 . 10 . 16 . 8 . 16 . . 1 11 . 13 . 14 7 Ejected 7 | . . . . . . . . . . . . . . . . . . . . . . . . . . . . . . 7 Machine Destruction 117 | . . . . . . . . 10 . 8 . . 10 . 10 . 16 . 8 . 16 . . 1 11 . 13 . 14 . Programmers 3 | . . . . . . . . . . . . 3 . . . . . . . . . . . . . . . . . . Attached 79 | . . . . . . . . . 5 . 1 5 4 5 1 2 4 5 1 7 3 2 . 5 4 3 2 1 7 12 Robots Rewired 6 | . . . . . 2 . . . . . . . . . . . 4 . . . . . . . . . . . . . Allies Hacked 1 | . . . . . . . . . . . . . . . . . . . . . . . . 1 . . . . . . Hacks Repelled . | . . . . . . . . . . . . . . . . . . . . . . . . . . . . . . . Allies | -11 -10 -10 -9 -9 -9 -8 -8 -8 -8 -8 -7 -7 -7 -6 -6 -6 -6 -5 -5 -5 -5 -4 -4 -4 -4 -3 -3 -2 -2 -1 -------- Run | Scr Mat Min Mat Min Exi Min Mat Gar Mat Gar Fac Sto Gar Fac Gar Fac Gar Fac Gar Fac Gar Fac Was Fac Gar Res Gar Res Gar Acc Total Allies 185 | . . . . . 2 . . . 8 . 4 8 10 9 2 6 11 9 9 13 10 1 . 8 12 6 10 . 21 26 Largest Group 13 | . . . . . 2 2 . . 1 . 4 4 6 3 2 3 5 5 2 6 6 1 1 3 7 3 7 . 7 13 Highest-Rated Group 822 | . . . . . 29 29 . . 16 . 114 126 101 99 58 105 196 196 53 200 187 49 49 138 158 128 281 . 457 822 Highest-Rated Ally 147 | . . . . . 21 21 . . 16 . 31 32 32 41 29 47 47 49 49 49 41 49 49 59 49 64 64 . 147 147 Total Orders 17 | . . . . . . . . . . . . 1 1 . . 2 1 . . 5 . . . 5 2 . . . . . STAY 3 | . . . . . . . . . . . . . . . . . . . . . . . . 2 1 . . . . . ROAM 1 | . . . . . . . . . . . . . . . . . 1 . . . . . . . . . . . . . FOLLOW 2 | . . . . . . . . . . . . . . . . . . . . . . . . 1 1 . . . . . AID 2 | . . . . . . . . . . . . 1 1 . . . . . . . . . . . . . . . . . EXPLORE 9 | . . . . . . . . . . . . . . . . 2 . . . 5 . . . 2 . . . . . . Ally Attacks 1113 | . . . . . . 6 . 11 62 . 7 52 31 54 13 48 55 60 31 112 70 6 22 56 74 4 80 . 91 168 Total Damage 28560 | . . . . . . 88 . 24 805 . 151 1276 482 975 149 1113 887 2293 868 2961 1179 207 1005 1956 1575 181 2167 . 2491 5727 Kills 176 | . . . . . . 1 . . 9 . 1 10 2 9 . 9 5 16 3 24 5 1 1 14 10 . 13 . 12 31 Allies Corrupted 6 | . . . . . . . . . . . . . . . . . . . . 3 . . . 1 1 . . . 1 . Allies Melted 1 | . . . . . . . . . . . . . . . . . . . . . 1 . . . . . . . . . Intel | -11 -10 -10 -9 -9 -9 -8 -8 -8 -8 -8 -7 -7 -7 -6 -6 -6 -6 -5 -5 -5 -5 -4 -4 -4 -4 -3 -3 -2 -2 -1 ------- Run | Scr Mat Min Mat Min Exi Min Mat Gar Mat Gar Fac Sto Gar Fac Gar Fac Gar Fac Gar Fac Gar Fac Was Fac Gar Res Gar Res Gar Acc Robot Analysis Total . | . . . . . . . . . . . . . . . . . . . . . . . . . . . . . . . Derelict Logs Recovered 1 | . . 1 . . . . . . . . . . . . . . . . . . . . . . . . . . . . Drone Launches 25 | . . . . . . . . 4 . . . . . . . 2 5 . . 6 3 . . 4 . . . . . 1 Drone Recoveries 20 | . . . . . . . . 2 . . . . . . . 2 5 . . 5 3 . . 2 . . . . . 1 Exploration | -11 -10 -10 -9 -9 -9 -8 -8 -8 -8 -8 -7 -7 -7 -6 -6 -6 -6 -5 -5 -5 -5 -4 -4 -4 -4 -3 -3 -2 -2 -1 ------------- Run | Scr Mat Min Mat Min Exi Min Mat Gar Mat Gar Fac Sto Gar Fac Gar Fac Gar Fac Gar Fac Gar Fac Was Fac Gar Res Gar Res Gar Acc Turns Passed 33089 | 83 1166 908 2353 316 1176 412 1110 1246 1672 534 621 919 1484 1128 925 1562 1825 702 781 1813 1501 340 408 1738 1820 590 1278 73 1589 1016 Spaces Moved 14710 | 55 620 473 1123 138 554 182 505 591 744 272 331 419 636 410 346 636 671 268 288 715 660 140 138 554 727 251 500 32 653 1078 Core 524 | 14 . . . . . . . . . . . . . . . . 2 . . . . . . . . . . . . 508 Treads 3039 | . . . . . . . . 376 744 272 331 419 636 257 4 . . . . . . . . . . . . . . . Legs 10754 | 41 620 473 1123 138 554 182 505 215 . . . . . 153 342 636 669 268 288 715 660 140 138 554 727 251 500 32 653 177 Wheels . | . . . . . . . . . . . . . . . . . . . . . . . . . . . . . . . Hover 317 | . . . . . . . . . . . . . . . . . . . . . . . . . . . . . . 317 Flight 76 | . . . . . . . . . . . . . . . . . . . . . . . . . . . . . . 76 Fastest Speed 32 | 50 120 180 150 180 210 180 150 150 160 160 160 160 160 150 180 180 180 210 180 180 180 180 210 240 210 210 210 210 180 32 Average Speed 180 | 118 146 180 175 206 210 195 150 175 175 160 167 160 184 195 185 182 213 210 203 197 180 201 227 240 220 210 210 210 209 69 Slowest Speed 2700 | 150 180 180 270 210 210 210 180 220 200 160 180 180 250 205 360 210 2700 210 210 210 210 210 240 240 270 210 210 210 240 300 Overloaded Moves . | . . . . . . . . . . . . . . . . . . . . . . . . . . . . . . . Propulsion Burnouts . | . . . . . . . . . . . . . . . . . . . . . . . . . . . . . . . Robots Hopped . | . . . . . . . . . . . . . . . . . . . . . . . . . . . . . . . Cave-ins Triggered . | . . . . . . . . . . . . . . . . . . . . . . . . . . . . . . . Exploration Rate (%) 51 | 4 75 78 84 39 90 32 50 83 85 50 9 59 93 15 46 23 73 10 55 22 96 5 88 28 90 9 95 1 94 30 Regions Visited 30 Branch Regions 5 Pre-discovered Areas 3 | . . 2 . . 1 . . . . . . . . . . . . . . . . . . . . . . . . . Known Exits Taken 13 | . 1 . 1 . . . 1 . 1 . 1 1 . 1 . 1 . 1 . 1 . . . 1 . 1 . 1 . . Unknown Exits Taken 5 | 1 . 1 . 1 1 1 . . . . . . . . . . . . . . . . . . . . . . . . Scrap Searched . | . . . . . . . . . . . . . . . . . . . . . . . . . . . . . . . Spaces Dug 51 | . . . . . . . 10 4 10 . . 1 1 . 18 2 . . 1 . 1 . . 3 . . . . . . Terrain Destroyed 732 | . . . 95 8 . 3 51 19 15 15 . 2 19 52 71 2 31 . 31 50 6 1 1 214 2 . 11 . 4 29 Melee 7 | . . . . . . . . . . . . 1 1 . . 1 . . 1 . . . . 3 . . . . . . Projectile 29 | . . . . . . . . . . . . 1 . . . 1 . . . 1 6 1 1 11 2 . . . 4 1 AOE 696 | . . . 95 8 . 3 51 19 15 15 . . 18 52 71 . 31 . 30 49 . . . 200 . . 11 . . 28 Terrain Rammed . | . . . . . . . . . . . . . . . . . . . . . . . . . . . . . . . Walls Destroyed . | . . . . . . . . . . . . . . . . . . . . . . . . . . . . . . . Machines Disabled . | . . . . . . . . . . . . . . . . . . . . . . . . . . . . . . . Actions | -11 -10 -10 -9 -9 -9 -8 -8 -8 -8 -8 -7 -7 -7 -6 -6 -6 -6 -5 -5 -5 -5 -4 -4 -4 -4 -3 -3 -2 -2 -1 --------- Run | Scr Mat Min Mat Min Exi Min Mat Gar Mat Gar Fac Sto Gar Fac Gar Fac Gar Fac Gar Fac Gar Fac Was Fac Gar Res Gar Res Gar Acc Total 19268 | 67 765 514 1364 150 566 224 728 728 967 331 378 629 860 646 496 981 924 382 420 1013 894 183 209 800 904 304 669 38 845 1289 Wait 1784 | 4 44 28 82 1 1 21 89 35 73 14 7 137 82 131 23 240 40 60 33 159 65 9 22 52 74 12 59 5 78 104 Move 14672 | 54 619 472 1122 137 553 181 504 589 743 270 330 418 634 409 344 635 669 267 286 714 658 140 137 554 725 250 498 31 651 1078 Hop . | . . . . . . . . . . . . . . . . . . . . . . . . . . . . . . . Pick Up 330 | 1 19 3 29 1 2 4 17 18 17 7 4 8 15 8 19 13 17 6 10 19 17 3 3 11 19 4 17 . 16 3 Fast Attach 97 | 7 1 . 7 . . . 2 3 3 . 3 . 4 1 5 2 7 . . 4 . 1 2 3 5 5 1 . . 31 Attach 176 | . 4 2 6 1 . 1 10 8 8 . 2 5 7 10 9 3 12 5 6 14 10 2 1 10 6 3 4 2 13 12 Detach 2 | . . . 1 . . . . . . . . . . . . . . . . . . . 1 . . . . . . . Swap 291 | . 7 . 16 . 3 4 19 6 16 7 8 9 12 16 14 23 21 5 9 14 16 6 2 24 10 2 11 . 4 7 Drop 241 | . 12 . 24 . 3 5 15 10 19 7 7 10 10 2 6 15 13 1 3 5 14 4 9 4 13 7 14 . . 9 Fire 1355 | 1 59 9 77 10 . 8 72 35 70 25 17 29 44 67 64 39 53 38 50 84 94 18 32 137 47 21 65 . 58 32 Melee 125 | . . . . . 2 . . 8 18 1 . 13 35 . 2 1 37 . 4 . . . . 4 . . . . . . Ram 1 | . . . . . . . . . . . . . . . . . . . . . . . . . . . . . . 1 Kick 3 | . . . . . . . . . . . . . . 1 . . . . 1 . . . . 1 . . . . . . Crush 12 | . . . . . . . . . . . . . 1 . . . . . . . . . . . . . . . . 11 Escape Stasis 132 | . . . . . . . . 16 . . . . 16 . 10 10 15 . 15 . 20 . . . 5 . . . 25 . Rewire 47 | . . . . . 2 . . . . . . . . 1 . . 40 . 3 . . . . . . . . . . 1 Trap . | . . . . . . . . . . . . . . . . . . . . . . . . . . . . . . . Miscellaneous . | . . . . . . . . . . . . . . . . . . . . . . . . . . . . . . . Route ------- -11/Scrapyard -10/Materials (discovered 3 exits: *Mat / *Min x2) -10/Mines -9/Materials (discovered 4 exits: *Mat x2 / *Min x2) -9/Mines (discovered 2 exits: *Mat / *Exi) -9/Exiles -8/Mines (discovered 2 exits: *Mat x2) -8/Materials (discovered 3 exits: *Fac x2 / Gar) -8/Garrison (discovered 3 exits: *Mat x3) -8/Materials (discovered 3 exits: *Fac x2 / Gar) -8/Garrison (discovered 2 exits: *Fac x2) -7/Factory (discovered 2 exits: *Fac / *Sto) -7/Storage (discovered 2 exits: Fac / Gar) -7/Garrison (discovered 3 exits: *Fac x3) -6/Factory (discovered 2 exits: *Low / Gar) -6/Garrison -6/Factory (discovered 2 exits: *Low / Gar) -6/Garrison (discovered 3 exits: *Fac x3) -5/Factory -5/Garrison -5/Factory (discovered 2 exits: *Fac / Gar) -5/Garrison (discovered 3 exits: *Fac x3) -4/Factory -4/Waste -4/Factory (discovered 7 exits: *Res x4 / Upp x2 / Gar) -4/Garrison (discovered 3 exits: *Res x3) -3/Research -3/Garrison (discovered 3 exits: *Res x3) -2/Research -2/Garrison (discovered 3 exits: *Acc x3) -1/Access History --------- Turn | Location | Event 2 | -11/Scrapyard | Met Revision 17 8 | -11/Scrapyard | Discovered new exit (range 14) 84 | -11/Scrapyard | Entered Materials 304 | -10/Materials | Build established: Mutant 575 | -10/Materials | Discovered new exit (range 12) 711 | -10/Materials | Discovered new exit (range 6) 987 | -10/Materials | Discovered new exit (range 16) 1142 | -10/Materials | Identified exit to Mines 1250 | -10/Materials | Entered Mines 1257 | -10/Mines | Found the Drone Emporium 1265 | -10/Mines | Found Prototype Device 1498 | -10/Mines | Learned location of Storage (-7) 1583 | -10/Mines | Assembled infested the area 1588 | -10/Mines | Assisted by a Guerilla fighting off Assembled 1788 | -10/Mines | Core integrity fell below 50% 1874 | -10/Mines | Discovered new exit (range 11) 2158 | -10/Mines | Entered Materials 2158 | -9/Materials | Evolved 2 slots: Utility x2 2168 | -9/Materials | Identified Thief Drone Bay 2513 | -9/Materials | Identified exit to Mines 2783 | -9/Materials | Build established: Hauler-Mutant 3568 | -9/Materials | Discovered new exit (range 17) 4307 | -9/Materials | Discovered new exit (range 13) 4511 | -9/Materials | Entered Mines 4630 | -9/Mines | Discovered new exit (range 7) 4745 | -9/Mines | Deemed a non-threat by the Exiles lab entrance 4745 | -9/Mines | Discovered new exit (range 5) 4827 | -9/Mines | Entered Exiles 4827 | -9/Exiles | Found Exiles lab destroyed 5361 | -9/Exiles | Learned location of Zion (-6) 5791 | -9/Exiles | Opened EX-Vault 5804 | -9/Exiles | Found Skeleton Box 5981 | -9/Exiles | Discovered new exit (range 12) 6003 | -9/Exiles | Entered Mines 6003 | -8/Mines | Accompanied by 2 allies 6234 | -8/Mines | Core integrity fell below 50% 6235 | -8/Mines | Discovered new exit (range 10) 6397 | -8/Mines | Discovered new exit (range 5) 6415 | -8/Mines | Entered Materials 6415 | -8/Materials | Evolved 2 slots: Propulsion x1, Utility x1 6733 | -8/Materials | Discovered new exit (range 16) 7366 | -8/Materials | Discovered new exit (range 16) 7439 | -8/Materials | Identified exit to Garrison 7525 | -8/Materials | Entered Garrison 7558 | -8/Garrison | Triggered checkpoint 7672 | -8/Garrison | Triggered checkpoint 7756 | -8/Garrison | Lost 6 parts (1n2u3w) 7818 | -8/Garrison | Discovered new exit (range 13) 7942 | -8/Garrison | Triggered checkpoint 7942 | -8/Garrison | Triggered checkpoint 8119 | -8/Garrison | Discovered new exit (range 8) 8144 | -8/Garrison | Installed Relay Interface Framework 8216 | -8/Garrison | Triggered checkpoint 8253 | -8/Garrison | Garrison Relay disabled 8396 | -8/Garrison | Discovered new exit (range 9) 8414 | -8/Garrison | Triggered checkpoint 8430 | -8/Garrison | Core integrity fell below 50% 8473 | -8/Garrison | Garrison Relay disabled 8643 | -8/Garrison | Garrison Relay disabled 8771 | -8/Garrison | Entered Materials 8772 | -8/Materials | Build established: Bothacker-Mutant 9328 | -8/Materials | Discovered new exit (range 11) 10161 | -8/Materials | Garrison activated, responded to threat 10308 | -8/Materials | Identified exit to Garrison 10348 | -8/Materials | Discovered new exit (range 16) 10443 | -8/Materials | Entered Garrison 10548 | -8/Garrison | Triggered checkpoint 10597 | -8/Garrison | Discovered new exit (range 8) 10620 | -8/Garrison | Expanded RIF knowledge: Coupler Efficiency 10658 | -8/Garrison | Triggered checkpoint 10694 | -8/Garrison | Garrison Relay disabled 10788 | -8/Garrison | Triggered checkpoint 10870 | -8/Garrison | Triggered checkpoint 10913 | -8/Garrison | Garrison Relay disabled 10953 | -8/Garrison | Discovered new exit (range 14) 10977 | -8/Garrison | Entered Factory 10977 | -7/Factory | Evolved 2 slots: Utility x2 11224 | -7/Factory | Found Prototype Launcher 11224 | -7/Factory | Identified Rocket Array 11283 | -7/Factory | Allied Derelicts emerged from ambush trap array 11440 | -7/Factory | Discovered new exit (range 11) 11472 | -7/Factory | Identified exit to Factory 11521 | -7/Factory | P-60 Hacker assimilated allied XJ-T3S(g) 11553 | -7/Factory | Discovered new exit (range 5) 11582 | -7/Factory | Identified exit to Storage 11598 | -7/Factory | Entered Storage 12284 | -7/Storage | Met a pair of Derelict thieves 12406 | -7/Storage | Found Powered Armor 12411 | -7/Storage | Found Powered Armor 12497 | -7/Storage | Identified exit to Garrison 12517 | -7/Storage | Entered Garrison 12517 | -7/Garrison | Accompanied by 2 allies 12598 | -7/Garrison | Triggered checkpoint 12627 | -7/Garrison | Garrison Relay disabled 12682 | -7/Garrison | Triggered checkpoint 12780 | -7/Garrison | Triggered checkpoint 12802 | -7/Garrison | Discovered exit to Factory (range 9) 12864 | -7/Garrison | Triggered checkpoint 12934 | -7/Garrison | Phase Generator disabled 12988 | -7/Garrison | Lost 6 parts (1p3n2w) 13023 | -7/Garrison | Garrison Relay disabled 13361 | -7/Garrison | Discovered exit to Factory (range 9) 13578 | -7/Garrison | Discovered exit to Factory (range 12) 13611 | -7/Garrison | Expanded RIF knowledge: Program Shield 13660 | -7/Garrison | Core integrity fell below 50% 13666 | -7/Garrison | Triggered checkpoint 13777 | -7/Garrison | Garrison Relay disabled 14001 | -7/Garrison | Entered Factory 14001 | -6/Factory | Evolved 2 slots: Utility x2 14406 | -6/Factory | Fabricated Hcp. Storage Unit (x1) 14629 | -6/Factory | Fabricated Hcp. Storage Unit (x1) 14859 | -6/Factory | Garrison activated, responded to threat 14964 | -6/Factory | Garrison activated, responded to threat 15019 | -6/Factory | Discovered new exit (range 15) 15100 | -6/Factory | Lost 3 parts (1p1u1w) 15125 | -6/Factory | Identified exit to Garrison 15129 | -6/Factory | Entered Garrison 15138 | -6/Garrison | Expanded RIF knowledge: Autooverride 15158 | -6/Garrison | Triggered checkpoint 15280 | -6/Garrison | Triggered checkpoint 15345 | -6/Garrison | Lost 5 parts (2n1u2w) 15375 | -6/Garrison | Garrison Relay disabled 15582 | -6/Garrison | Build established: Hauler-Mutant 15629 | -6/Garrison | Triggered checkpoint 15650 | -6/Garrison | Triggered checkpoint 15662 | -6/Garrison | Triggered checkpoint 15736 | -6/Garrison | Lost 5 parts (3n1u1w) 15828 | -6/Garrison | Triggered checkpoint 15903 | -6/Garrison | Garrison Relay disabled 16026 | -6/Garrison | Discovered new exit (range 15) 16049 | -6/Garrison | Identified exit to Factory 16054 | -6/Garrison | Entered Factory 16482 | -6/Factory | Fabricated Hcp. Storage Unit (x1) 16538 | -6/Factory | Fabricated Hcp. Storage Unit (x1) 17024 | -6/Factory | Build established: Botlord-Mutant 17492 | -6/Factory | Discovered new exit (range 5) 17499 | -6/Factory | Identified exit to Lower Caves 17610 | -6/Factory | Identified exit to Garrison 17616 | -6/Factory | Entered Garrison 17616 | -6/Garrison | Accompanied by 2 allies 17800 | -6/Garrison | Triggered checkpoint 17824 | -6/Garrison | Spotted B-75 Beast 17884 | -6/Garrison | Spotted B-75 Beast 17896 | -6/Garrison | Triggered checkpoint 17905 | -6/Garrison | Triggered checkpoint 17911 | -6/Garrison | Core integrity fell below 50% 17925 | -6/Garrison | Triggered checkpoint 17938 | -6/Garrison | Lost 5 parts (2n3u) 17946 | -6/Garrison | Destroyed B-75 Beast 18025 | -6/Garrison | Lost 7 parts (1p3n2u1w) 18295 | -6/Garrison | Discovered new exit (range 15) 18372 | -6/Garrison | Triggered checkpoint 18451 | -6/Garrison | Garrison Relay disabled 18607 | -6/Garrison | Discovered new exit (range 9) 18736 | -6/Garrison | Discovered new exit (range 10) 18753 | -6/Garrison | Identified exit to Factory 18768 | -6/Garrison | Expanded RIF knowledge: Structural Interface 18829 | -6/Garrison | Garrison Relay disabled 19047 | -6/Garrison | Garrison Relay disabled 19050 | -6/Garrison | Triggered checkpoint 19254 | -6/Garrison | Triggered checkpoint 19284 | -6/Garrison | Core integrity fell below 20% 19286 | -6/Garrison | Garrison Relay disabled 19441 | -6/Garrison | Entered Factory 19441 | -5/Factory | Accompanied by 5 allies 19441 | -5/Factory | Evolved 2 slots: Utility x2 20044 | -5/Factory | Garrison activated, responded to threat 20141 | -5/Factory | Identified exit to Garrison 20143 | -5/Factory | Entered Garrison 20154 | -5/Garrison | Expanded RIF knowledge: Coupler Efficiency 20392 | -5/Garrison | Triggered checkpoint 20414 | -5/Garrison | Garrison Relay disabled 20574 | -5/Garrison | Lost 4 parts (1p1n1u1w) 20766 | -5/Garrison | Triggered checkpoint 20815 | -5/Garrison | Garrison Relay disabled 20865 | -5/Garrison | Discovered new exit (range 10) 20879 | -5/Garrison | Identified exit to Factory 20924 | -5/Garrison | Entered Factory 20924 | -5/Factory | Accompanied by 1 ally 21028 | -5/Factory | Repaired Flexi-carbon Leg 21274 | -5/Factory | System corruption reached 10% 21300 | -5/Factory | Lost 3 parts (1p1u1w) 21500 | -5/Factory | Allied Derelicts emerged from ambush trap array 21531 | -5/Factory | Garrison activated, responded to threat 21584 | -5/Factory | P-70 Sage assimilated allied XM-Z6M(g) 21677 | -5/Factory | Lost 4 parts (1p2n1u) 22266 | -5/Factory | Discovered new exit (range 16) 22325 | -5/Factory | Identified exit to Factory 22517 | -5/Factory | Lost 3 parts (1p2u) 22735 | -5/Factory | Identified exit to Garrison 22737 | -5/Factory | Entered Garrison 22834 | -5/Garrison | Triggered checkpoint 22865 | -5/Garrison | Garrison Relay disabled 22938 | -5/Garrison | Triggered checkpoint 22996 | -5/Garrison | Triggered checkpoint 23004 | -5/Garrison | Triggered checkpoint 23088 | -5/Garrison | Triggered checkpoint 23193 | -5/Garrison | Discovered exit to Factory (range 15) 23229 | -5/Garrison | Expanded RIF knowledge: Robot Detection 23296 | -5/Garrison | Garrison Relay disabled 23504 | -5/Garrison | Discovered exit to Factory (range 14) 23580 | -5/Garrison | Triggered checkpoint 23627 | -5/Garrison | Garrison Relay disabled 23954 | -5/Garrison | Discovered exit to Factory (range 14) 24054 | -5/Garrison | Triggered checkpoint 24127 | -5/Garrison | Garrison Relay disabled 24238 | -5/Garrison | Entered Factory 24238 | -4/Factory | Evolved 2 slots: Power x1, Utility x1 24503 | -4/Factory | Discovered new exit (range 6) 24515 | -4/Factory | Identified exit to Upper Caves 24578 | -4/Factory | Sucked down chute 24578 | -4/Factory | Entered Waste 24593 | -4/Waste | EMP discharged 24593 | -4/Waste | Spotted C-40 Crusher 24595 | -4/Waste | 1 allies followed down the chute 24608 | -4/Waste | Spotted C-40 Crusher 24611 | -4/Waste | Spotted C-40 Crusher 24623 | -4/Waste | Spotted C-40 Crusher 24642 | -4/Waste | Destroyed C-40 Crusher 24693 | -4/Waste | EMP discharged 24693 | -4/Waste | System corruption reached 10% 24704 | -4/Waste | Spotted C-40 Crusher 24728 | -4/Waste | Spotted C-40 Crusher 24745 | -4/Waste | Destroyed C-40 Crusher 24754 | -4/Waste | Found Damper Plating 24763 | -4/Waste | Found Damper Plating 24793 | -4/Waste | EMP discharged 24819 | -4/Waste | Destroyed C-40 Crusher 24847 | -4/Waste | Found Damper Plating 24893 | -4/Waste | EMP discharged 24949 | -4/Waste | Discovered new exit (range 16) 24986 | -4/Waste | Entered Factory 25301 | -4/Factory | Identified exit to Research 25765 | -4/Factory | Spotted B-86 Titan 26486 | -4/Factory | First assault squad dispatched 26554 | -4/Factory | Spotted B-86 Titan 26574 | -4/Factory | Fabricated Hcp. Storage Unit (x1) 26617 | -4/Factory | Garrison activated, responded to threat 26661 | -4/Factory | Destroyed 8 combat bots 26704 | -4/Factory | Identified exit to Garrison 26724 | -4/Factory | Entered Garrison 26936 | -4/Garrison | Triggered checkpoint 27014 | -4/Garrison | Garrison Relay disabled 27366 | -4/Garrison | Triggered checkpoint 27384 | -4/Garrison | Triggered checkpoint 27424 | -4/Garrison | Triggered checkpoint 27529 | -4/Garrison | Discovered exit to Research (range 13) 27734 | -4/Garrison | Triggered checkpoint 27894 | -4/Garrison | Spotted B-86 Titan 27957 | -4/Garrison | Discovered exit to Research (range 3) 27973 | -4/Garrison | Expanded RIF knowledge: Threat Obfuscation 28030 | -4/Garrison | Triggered checkpoint 28036 | -4/Garrison | Garrison Relay disabled 28310 | -4/Garrison | Discovered exit to Research (range 13) 28440 | -4/Garrison | Garrison Relay disabled 28452 | -4/Garrison | Triggered checkpoint 28544 | -4/Garrison | Entered Research 28544 | -3/Research | Evolved 2 slots: Utility x2 28662 | -3/Research | Found Quantum Capacitor 28799 | -3/Research | Found Prototype Device 28799 | -3/Research | Identified Exp. Thermal Shield 29044 | -3/Research | First assault squad dispatched 29093 | -3/Research | Garrison activated, responded to threat 29132 | -3/Research | Identified exit to Garrison 29134 | -3/Research | Entered Garrison 29134 | -3/Garrison | Accompanied by 3 allies 29194 | -3/Garrison | Triggered checkpoint 29226 | -3/Garrison | Garrison Relay disabled 29353 | -3/Garrison | Spotted B-86 Titan 29372 | -3/Garrison | Allies destroyed B-86 Titan 29386 | -3/Garrison | Triggered checkpoint 29582 | -3/Garrison | Triggered checkpoint 29623 | -3/Garrison | Garrison Relay disabled 29691 | -3/Garrison | Discovered new exit (range 10) 29723 | -3/Garrison | Expanded RIF knowledge: Zone Cloak 29800 | -3/Garrison | Triggered checkpoint 29808 | -3/Garrison | Triggered checkpoint 29945 | -3/Garrison | Discovered new exit (range 10) 30004 | -3/Garrison | Triggered checkpoint 30086 | -3/Garrison | Garrison Relay disabled 30228 | -3/Garrison | Discovered new exit (range 12) 30260 | -3/Garrison | Triggered checkpoint 30334 | -3/Garrison | Garrison Relay disabled 30412 | -3/Garrison | Entered Research 30412 | -2/Research | Evolved 2 slots: Utility x2 30465 | -2/Research | Identified exit to Garrison 30485 | -2/Research | Entered Garrison 30558 | -2/Garrison | Garrison Relay disabled 30622 | -2/Garrison | Spotted B-90 Cyclops 30690 | -2/Garrison | Triggered checkpoint 30694 | -2/Garrison | Triggered checkpoint 30727 | -2/Garrison | Triggered checkpoint 30731 | -2/Garrison | Assimilated Cyclops 9a with formatsys_high 30766 | -2/Garrison | Triggered checkpoint 30767 | -2/Garrison | Lost 4 parts (1p1n2u) 30862 | -2/Garrison | Triggered checkpoint 30893 | -2/Garrison | Garrison Relay disabled 31038 | -2/Garrison | Discovered new exit (range 13) 31329 | -2/Garrison | Discovered new exit (range 12) 31366 | -2/Garrison | Expanded RIF knowledge: Autoassimilate 31440 | -2/Garrison | Triggered checkpoint 31457 | -2/Garrison | Garrison Relay disabled 31712 | -2/Garrison | Discovered new exit (range 14) 31748 | -2/Garrison | Triggered checkpoint 31777 | -2/Garrison | Garrison Relay disabled 32074 | -2/Garrison | Entered Access 32074 | -1/Access | Accompanied by 7 allies 32074 | -1/Access | Evolved 2 slots: Utility x2 32546 | -1/Access | System corruption reached 10% 32619 | -1/Access | Lost 18 parts (2p5n8u3w) 32735 | -1/Access | Spotted B-99 Colossus 32792 | -1/Access | Lost 3 parts (1p1n1u) 32839 | -1/Access | Found Prototype Processor 32839 | -1/Access | Identified Exp. Targeting Computer 32853 | -1/Access | Spotted B-99 Colossus 32860 | -1/Access | Core integrity fell below 50% 32877 | -1/Access | Build established: Mutant 32890 | -1/Access | Lost 4 parts (1p3n) 32929 | -1/Access | Garrison activated, responded to threat 33067 | -1/Access | Core integrity fell below 20% 33090 | -1/Access | Self-destructed Last Messages --------------- 33044_ Xenon Bombardment Thruster destroyed. 33045_ D2NFGARVB TNUO BDDFKI7STS|VS> 33047_ Acquired Adv. Heavy Treads. 33048_ Adv. System Shield destroyed. 33048_ Penetrated by Slug. 33048_ Adv. Targeting Computer destroyed. 33050_ ALERT: Unscheduled coupler replacement inbound for Garrison vPm.7n. 33050_ Relay Coupler [NC] destroyed. 33053_ Slug penetrates Wall. 33056_ Slammed into S-43 Plague. 33063_ MCS2TZ,KM:Y0DGEQXCP8LCE1WRR# 33063_ Slammed into S-43 Plague. 33070_ S-43 Plague destroyed. 33071_ Acquired 40 matter. 33073_ Relay Coupler [Sentry] destroyed. 33073_ Relay Coupler [Grunt] destroyed. 33075_ S-43 Plague destroyed. 33080_ System corrupted: Energy discharge (-27). 33083_ RIF reveals location of hidden door. 33085_ RIF automatically rewrites G-73 Enforcer IFF filter. Map ----- +----------------------------------------------------+ | #%== # # #?????# ###### ### | | #=!= # # #?????# #????????? | | ###/##### !! !# ##+######## #######???? | | ??# #???# g # ## # # #???? | | ??# ##### # ## + + #???? | | ??# b gg # ## " # # #+### | | ??########/##### ## """ # # # | | ?????????#Y#???# ## """ ?# # # | | ?????????# #???# ## " ?# #!!! # | | # ??????#Y#???# ## ??# #!!! + | | # ????# #???# + ??# #!!! # | | # ??# #???# # ???# # # !! | | # #s##### ####+##### # # !! | | # + # # !! | | # # # # | | ??+####### % g #####+# | | ???????# * lg #?????# | | ???????# #????# | | ???????# #????####+ | | ???????# #????????? | | ???????# #????????? | | ???????###+##### #????????? | | ???????????????# ######### #????????? | | ???????????????# #???????? ?????????? | | ???????????????# #????????? ?????????? | | ???????????????# @ #?????????????????????? | | ???????????????# #?????????????????????? | | ???????????????# +????????????????????? | | ???????????????# ##????????????????????? | | ???????????????# #?????????????????????? | | ???????????????# #?????????????????????? | | ??????????????? ?????????????????????? | | ??????????????? ?????????????????????? | | ??????????????? ?????????????????????? | | ??????????????# #????????????????????? | | ??????????????# #????????????????????? | | ??????????????### ###????????????????????? | | ????????????????? ???????????????????????? | | ???????Y?????????+???????????????????????? | | ?????????????????????????????????????????? | | ?????????????????????????????????????????? | | ?????????????????????????????????????????? | | ?????????????????????????????????????????? | | ?????????????????????????????????????????? | | ?????????????????????????????????????????? | | ?????????????????????????????????????????? | | ?????????????????????????????????????????? | | ?????????????????????????????????????????? | | ?????????????????????????????????????????? | | ?????????????????????????????????????????? | +----------------------------------------------------+ Best States ------------- Heat Dissipation 80 Energy Generation 43 Energy Capacity 580 Matter Stores 300 Matter Capacity 300 Sight Range 16 Robot Scan Range 20 Terrain Scan Density 10 Jamming Range 16 Armor Coverage 1200 Resistance: TH 10 Resistance: EM 90 Weapon Cycling 25 Evasion (%) 72 Armor Integrity Analysis 66 Recoil Reduction 3 Offensive Hacking 14 Defensive Hacking 28 Relay Coupler Types 367 Relay Coupler Value 8 Item Schematics ----------------- Hcp. Storage Unit | -9/Materials | Hacked Robot Schematics ------------------ None Fabricated ------------ Hcp. Storage Unit | x1 | -6/Factory Hcp. Storage Unit | x1 | -6/Factory Hcp. Storage Unit | x1 | -6/Factory Hcp. Storage Unit | x1 | -6/Factory Hcp. Storage Unit | x1 | -4/Factory Alien Tech Used ----------------- None Achievements -------------- None Challenges ------------ None Game ------ Seed GammaHardenedScythe Manual? 0 Play Time 04:23:37 Cumulative 1082.3 hours Start 2020.09.16 @ 19:57:46 End 2020.09.17 @ 01:26:17 Sessions 1 Manual Loads 0 Difficulty Rogue Special Mode None Game No. 349 Rogue 349 Adventurer 0 Explorer 0 Win Type - Total 78 Types 14/9/35/5/1/2/12/0/0 Lore% 94 Gallery% 95 Achievement% 85 Wizard Run 0 Options --------- ASCII 0 Keyboard 0 Movement Numpad Keybinds 0 Fullscreen 1 Font 18/SmallcapsGlow Map View 76x50 Tactical HUD 1 Map Filters NONE Filters NONE Steam 1 RUN: 46d9518a-c93d-4437-8bc3-4b19a5bdd479